bitfinex-derivatives/quotes_BTCF0:USTF0_20250823
["timestamp","ask_amount","ask_price","bid_price","bid_amount"]
[1755937219048,1.04584591,115840.0,115830.0,0.23704099]
[1755937220247,1.04584591,115840.0,115830.0,0.27125099]
[1755937220454,1.04584591,115840.0,115830.0,0.30202099]
[1755937223550,0.6665588,115840.0,115830.0,0.30202099]
[1755937223756,1.04584591,115840.0,115830.0,0.30202099]
[1755937224560,1.04584591,115840.0,115830.0,0.28601099]
[1755937224857,1.04584591,115840.0,115830.0,0.23704099]
[1755937225058,1.04584591,115840.0,115830.0,0.23752032]
[1755937226560,0.6665588,115840.0,115830.0,0.37285522]
[1755937226751,1.04584591,115840.0,115830.0,0.37285522]
[1755937227054,1.04584591,115840.0,115830.0,0.38886522]
[1755937227455,0.5802029,115840.0,115830.0,0.75690233]
[1755937227651,1.0175629,115840.0,115830.0,0.79077233]
[1755937227958,1.0175629,115840.0,115830.0,1.13811147]
[1755937228156,1.0175629,115840.0,115830.0,0.79077301]
[1755937228552,1.1039203,115840.0,115830.0,0.77727247]
[1755937228853,1.0175629,115840.0,115830.0,0.76381007]
[1755937229149,0.2194029,115840.0,115830.0,1.40157506]
[1755937229359,1.0174429,115840.0,115830.0,1.40157506]
[1755937229559,0.2194029,115840.0,115830.0,1.40157506]
[1755937229758,1.0172029,115840.0,115830.0,1.40157506]
[1755937229952,1.0172029,115840.0,115830.0,1.15157506]
[1755937230149,0.2194029,115840.0,115830.0,1.15157506]
[1755937230347,1.0171229,115840.0,115830.0,1.15157506]
[1755937230653,1.0170429,115840.0,115830.0,1.15157506]
[1755937231656,0.1272929,115840.0,115830.0,1.51030073]
[1755937231848,0.9248529,115840.0,115830.0,1.07108755]
[1755937232053,0.9248529,115840.0,115830.0,1.95037466]
[1755937232954,1.0055529,115840.0,115830.0,1.95037466]
[1755937233361,1.0204729,115840.0,115830.0,1.95037466]
[1755937233567,1.0204729,115840.0,115830.0,1.8418408]
[1755937234257,1.0202329,115840.0,115830.0,1.8418408]
[1755937234459,0.2229129,115840.0,115830.0,1.8418408]
[1755937234658,1.0201929,115840.0,115830.0,1.8418408]
[1755937235458,1.0201929,115840.0,115830.0,1.46255369]
[1755937235659,1.0201929,115840.0,115830.0,1.8418408]
[1755937235960,1.0201529,115840.0,115830.0,1.8418408]
[1755937236368,1.0201529,115840.0,115830.0,1.95037466]
[1755937237254,1.0201529,115840.0,115830.0,1.95037375]
[1755937237458,1.0201529,115840.0,115830.0,1.95040913]
[1755937237764,1.0201529,115840.0,115830.0,1.92340967]
[1755937237964,1.0201529,115840.0,115830.0,1.95040913]
[1755937239368,1.1065104,115840.0,115830.0,1.57112202]
[1755937239670,1.48579751,115840.0,115830.0,1.58960913]
[1755937239869,1.84659751,115840.0,115830.0,1.56664913]
[1755937240170,1.84659751,115840.0,115830.0,0.93736202]
[1755937240468,1.84659751,115840.0,115830.0,0.79495876]
[1755937240670,1.84659751,115840.0,115830.0,0.87260292]
[1755937241170,1.84659751,115840.0,115830.0,0.40647292]
[1755937243267,1.84659751,115840.0,115830.0,0.37260292]
[1755937243469,1.84659751,115840.0,115830.0,0.26418876]
[1755937243868,1.84659751,115840.0,115830.0,0.15598386]
[1755937244367,1.84659751,115840.0,115830.0,0.23362802]
[1755937246271,1.84659751,115840.0,115830.0,0.15598386]
[1755937246473,1.84659751,115840.0,115830.0,0.19743796]
[1755937246664,1.84659751,115840.0,115830.0,0.22444023]
[1755937247073,1.84659751,115840.0,115830.0,0.22444039]
[1755937247671,2.09659751,115840.0,115830.0,0.22444039]
[1755937248080,1.7173104,115840.0,115830.0,0.22444039]
[1755937248279,2.09659751,115840.0,115830.0,0.22444039]
[1755937249578,2.09659751,115840.0,115830.0,0.22444122]
[1755937252581,2.09659751,115840.0,115830.0,0.22444143]
[1755937254687,2.09659751,115840.0,115830.0,0.14679727]
[1755937254888,2.09659751,115840.0,115830.0,0.22444143]
[1755937255591,2.09659751,115840.0,115830.0,0.2109398]
[1755937255887,2.09659751,115840.0,115830.0,0.22444166]
[1755937256791,2.09659751,115840.0,115830.0,0.1467975]
[1755937256990,2.09659751,115840.0,115830.0,0.22444166]
[1755937257892,2.09659751,115840.0,115830.0,0.1467975]
[1755937258883,1.84659751,115840.0,115830.0,0.1467978]
[1755937259192,2.20739751,115840.0,115830.0,0.1467978]
[1755937261390,2.58668462,115840.0,115830.0,0.04679782]
[1755937261597,2.20739751,115840.0,115830.0,0.04679782]
[1755937261982,2.20739751,115840.0,115830.0,0.10889611]
[1755937262185,2.58668462,115840.0,115830.0,0.10889611]
[1755937262697,2.20739751,115840.0,115830.0,0.10889611]
[1755937263994,2.20739751,115840.0,115830.0,0.10889646]
[1755937264197,2.20739751,115840.0,115830.0,0.10889649]
[1755937265301,2.20739751,115840.0,115830.0,0.10789649]
[1755937265994,1.8291104,115840.0,115830.0,0.10689649]
[1755937266297,2.20839751,115840.0,115830.0,0.10689649]
[1755937266497,2.20839751,115840.0,115830.0,0.13884649]
[1755937268093,1.8291104,115840.0,115830.0,0.13884649]
[1755937268397,2.20839751,115840.0,115830.0,0.13884649]
[1755937270298,2.20839751,115840.0,115830.0,0.0767482]
[1755937272298,2.20839751,115840.0,115830.0,0.13160236]
[1755937273096,2.20839751,115840.0,115830.0,0.11810016]
[1755937273302,2.20839751,115840.0,115830.0,0.13160236]
[1755937279008,1.8291104,115840.0,115830.0,0.13160236]
[1755937279216,2.20839751,115840.0,115830.0,0.13160236]
[1755937282401,2.20839751,115840.0,115830.0,0.11810016]
[1755937282708,2.20839751,115840.0,115830.0,0.13160236]
[1755937283009,1.8291104,115840.0,115830.0,0.13160236]
[1755937283608,2.20839751,115840.0,115830.0,0.13160236]
[1755937286011,1.8291104,115840.0,115830.0,0.13160236]
[1755937286205,2.20839751,115840.0,115830.0,0.13160236]
[1755937290809,1.8291104,115840.0,115830.0,0.13160236]
[1755937291009,2.20839751,115840.0,115830.0,0.13160236]
[1755937291607,2.20839751,115840.0,115830.0,0.11810016]
[1755937291808,2.20839751,115840.0,115830.0,0.13160236]
[1755937292211,2.20839751,115840.0,115830.0,0.11810016]
[1755937292410,2.20839751,115840.0,115830.0,0.13160236]
[1755937292798,2.20839751,115840.0,115830.0,0.0539582]
[1755937293411,2.58768462,115840.0,115830.0,0.16249206]
[1755937293603,2.20839751,115840.0,115830.0,0.16249206]
[1755937293911,2.20839751,115840.0,115830.0,0.1317308]
[1755937296514,2.58768462,115840.0,115830.0,0.0539582]
[1755937296712,2.58768462,115840.0,115830.0,0.0447982]
[1755937297414,2.58768462,115840.0,115830.0,0.15333206]
[1755937298112,2.58768462,115840.0,115830.0,0.23110468]
[1755937298310,2.58768462,115840.0,115830.0,0.12257082]
[1755937300117,1.8291104,115840.0,115830.0,0.12257082]
[1755937300315,2.58768462,115840.0,115830.0,0.12257082]
[1755937301710,2.58768462,115840.0,115830.0,0.10906862]
[1755937301911,2.58768462,115840.0,115830.0,0.12257082]
[1755937302620,2.58768462,115840.0,115830.0,0.15333206]
[1755937302915,1.8291104,115840.0,115830.0,0.23110471]
[1755937303111,2.58768462,115840.0,115830.0,0.12257085]
[1755937309818,2.60686713,115840.0,115830.0,0.10477705]
[1755937313523,2.60846826,115840.0,115830.0,0.11399705]
[1755937314115,2.60846826,115840.0,115830.0,0.16699513]
[1755937314310,2.60846826,115840.0,115830.0,0.0270044]
[1755937317929,2.60846826,115840.0,115830.0,0.10477705]
[1755937319226,2.60846826,115840.0,115830.0,0.09127485]
[1755937319427,2.60846826,115840.0,115830.0,0.10477729]
[1755937319831,2.60846826,115840.0,115830.0,0.09127497]
[1755937320030,2.60846826,115840.0,115830.0,0.10477729]
[1755937321833,2.60846826,115840.0,115830.0,0.02700464]
[1755937323040,2.60846826,115840.0,115830.0,0.10476247]
[1755937323923,2.22918115,115840.0,115830.0,0.10476247]
[1755937324130,2.60846826,115840.0,115830.0,0.11476247]
[1755937326126,2.60846826,115840.0,115830.0,0.13698247]
[1755937327326,2.22918115,115840.0,115830.0,0.12348015]
[1755937327638,2.22918115,115840.0,115830.0,0.13698249]
[1755937327936,2.22918115,115840.0,115830.0,0.12348016]
[1755937328137,2.22918115,115840.0,115830.0,0.13698249]
[1755937330233,2.22918115,115840.0,115830.0,0.11476249]
[1755937332037,2.22918115,115840.0,115830.0,0.03700466]
[1755937332438,1.05265404,115840.0,115830.0,0.45403177]
[1755937332640,1.43367153,115840.0,115830.0,0.79493188]
[1755937332940,0.99070144,115840.0,115830.0,1.35063064]
[1755937333147,0.96254528,115840.0,115830.0,1.35063064]
[1755937333444,0.94546144,115840.0,115830.0,1.35063064]
[1755937333736,0.94546144,115840.0,115830.0,1.24209678]
[1755937333937,0.92098144,115840.0,115830.0,1.24209678]
[1755937334134,0.4471552,115850.0,115840.0,0.1018774]
[1755937334340,0.4471552,115850.0,115840.0,0.72234733]
[1755937334341,1.2418352,115850.0,115840.0,0.72234733]
[1755937334541,1.2947252,115850.0,115840.0,0.343054]
[1755937334740,1.2947252,115850.0,115840.0,0.61361295]
[1755937334943,1.2947252,115850.0,115840.0,0.73245975]
[1755937335146,1.3418848,115850.0,115840.0,0.73245975]
[1755937336144,1.3418848,115850.0,115840.0,0.70135548]
[1755937336442,1.3288548,115850.0,115840.0,0.62373728]
[1755937336944,1.3288548,115850.0,115840.0,0.62373717]
[1755937337441,1.42469681,115850.0,115840.0,0.62373717]
[1755937338443,1.45037681,115850.0,115840.0,0.62373717]
[1755937339537,1.45037681,115850.0,115840.0,0.73245964]
[1755937339746,1.01625161,115850.0,115840.0,1.11174675]
[1755937339935,1.01625161,115850.0,115840.0,1.11174629]
[1755937340137,0.10471161,115850.0,115840.0,1.72254629]
[1755937340444,0.89967161,115850.0,115840.0,1.72254629]
[1755937341042,0.89967161,115850.0,115840.0,1.82254629]
[1755937341348,0.89967161,115850.0,115840.0,2.32254629]
[1755937341843,0.89967161,115850.0,115840.0,2.32454629]
[1755937342245,0.10471161,115850.0,115840.0,2.32454629]
[1755937342440,0.10471161,115850.0,115840.0,2.32554629]
[1755937343149,0.10471161,115850.0,115840.0,2.32454629]
[1755937343445,0.10471161,115850.0,115840.0,2.32554629]
[1755937345851,0.10471161,115850.0,115840.0,2.30192324]
[1755937346045,0.10471161,115850.0,115840.0,2.31204554]
[1755937346349,0.10471161,115850.0,115840.0,2.32554351]
[1755937346649,0.10471161,115850.0,115840.0,3.12074345]
[1755937346850,0.10471161,115850.0,115840.0,3.29817648]
[1755937347046,0.10471161,115850.0,115840.0,3.11202098]
[1755937348243,0.0063509,115850.0,115840.0,3.11202098]
[1755937349156,0.0063509,115850.0,115840.0,3.11201909]
[1755937350046,0.0063509,115850.0,115840.0,2.86201909]
[1755937351039,0.0063509,115850.0,115840.0,2.97037596]
[1755937351244,0.01490154,115850.0,115840.0,2.97037596]
[1755937355256,0.01490154,115850.0,115840.0,2.94675536]
[1755937355458,0.01490154,115850.0,115840.0,2.97037488]
[1755937357358,0.01608845,115850.0,115840.0,2.97037488]
[1755937360155,0.0076664,115850.0,115840.0,2.97037488]
[1755937360357,0.00118691,115850.0,115840.0,2.86201801]
[1755937360861,0.00986824,115850.0,115840.0,2.86201801]
[1755937362265,0.09666554,115850.0,115840.0,2.86201801]
[1755937362466,0.09584201,115850.0,115840.0,2.86201801]
[1755937362661,0.09584201,115850.0,115840.0,3.01698667]
[1755937362854,0.17272201,115850.0,115840.0,3.01698667]
[1755937363060,0.21153201,115850.0,115840.0,3.01698667]
[1755937363460,0.21153201,115850.0,115840.0,2.86201801]
[1755937364266,0.21153201,115850.0,115840.0,2.76201801]
[1755937364470,0.21153201,115850.0,115840.0,2.73839849]
[1755937364668,0.21153201,115850.0,115840.0,2.76201947]
[1755937364964,0.20616294,115850.0,115840.0,2.74852207]
[1755937365170,0.20616294,115850.0,115840.0,2.76201947]
[1755937367471,0.17323294,115850.0,115840.0,2.76201947]
[1755937368273,0.17323294,115850.0,115840.0,2.91698813]
[1755937369278,0.15220294,115850.0,115840.0,2.91698813]
[1755937369577,0.14257294,115850.0,115840.0,3.01698813]
[1755937370173,0.13415057,115850.0,115840.0,3.01698813]
[1755937371376,0.11892057,115850.0,115840.0,2.86201947]
[1755937371564,0.09600057,115850.0,115840.0,2.86201947]
[1755937371969,0.19774057,115850.0,115840.0,2.00344525]
[1755937372174,0.09507301,115850.0,115840.0,2.76201947]
[1755937372682,0.10384249,115850.0,115840.0,2.76201947]
[1755937373480,0.08989249,115850.0,115840.0,2.76201947]
[1755937373681,0.08989249,115850.0,115840.0,2.73502467]
[1755937373879,0.08989249,115850.0,115840.0,2.76201947]
[1755937374279,0.1857345,115850.0,115840.0,2.73502467]
[1755937374483,0.15239149,115850.0,115840.0,2.76201947]
[1755937374682,0.10461149,115850.0,115840.0,2.86201947]
[1755937375481,0.10461149,115850.0,115840.0,3.01698813]
[1755937378590,0.10461149,115850.0,115840.0,2.86201947]
[1755937379186,0.09899658,115850.0,115840.0,2.86201947]
[1755937380386,0.09057421,115850.0,115840.0,2.86201947]
[1755937380686,0.0994441,115850.0,115840.0,2.86201947]
[1755937381283,0.1857937,115850.0,115840.0,2.86201947]
[1755937381484,0.0994441,115850.0,115840.0,2.86201947]
[1755937381790,0.0994441,115850.0,115840.0,2.85189642]
[1755937381986,0.0994441,115850.0,115840.0,2.86201947]
[1755937382188,0.01006705,115850.0,115840.0,2.86201947]
[1755937383391,0.01006705,115850.0,115840.0,3.01698813]
[1755937383690,0.09641665,115850.0,115840.0,2.91698813]
[1755937383878,0.01006705,115850.0,115840.0,2.91698813]
[1755937384080,0.01125396,115850.0,115840.0,2.91698813]
[1755937384282,0.00132312,115850.0,115840.0,2.91698813]
[1755937384690,0.00132312,115850.0,115840.0,3.01698813]
[1755937385186,0.00132312,115850.0,115840.0,2.91698813]
[1755937385993,0.08767272,115850.0,115840.0,2.91698813]
[1755937386391,0.18351473,115850.0,115840.0,2.91698813]
[1755937387492,0.18351473,115850.0,115840.0,2.15841391]
[1755937387693,0.25289473,115850.0,115840.0,2.91698813]
[1755937387899,0.30077473,115850.0,115840.0,2.91698813]
[1755937388283,0.30077473,115850.0,115840.0,2.38273236]
[1755937388494,0.30077473,115850.0,115840.0,2.76201947]
[1755937388794,0.28738473,115850.0,115840.0,2.76201947]
[1755937389592,0.28738473,115850.0,115840.0,2.00344525]
[1755937389793,0.28738473,115850.0,115840.0,2.76201947]
[1755937389994,0.21310201,115850.0,115840.0,2.76201947]
[1755937390194,0.20467962,115850.0,115840.0,2.76201947]
[1755937390791,0.21335472,115850.0,115840.0,2.91698813]
[1755937391097,0.19920472,115850.0,115840.0,2.90349073]
[1755937391287,0.19920472,115850.0,115840.0,2.91698818]
[1755937391690,0.28555382,115850.0,115840.0,2.90349076]
[1755937391896,0.28555382,115850.0,115840.0,2.9169882]
[1755937394097,0.27993889,115850.0,115840.0,2.9169882]
[1755937395398,0.11667386,115850.0,115840.0,2.9169882]
[1755937395603,0.0950242,115850.0,115840.0,2.9169882]
[1755937396100,0.1287242,115850.0,115840.0,2.53770109]
[1755937396300,0.1287242,115850.0,115840.0,2.38273243]
[1755937396501,0.1287242,115850.0,115840.0,1.58753243]
[1755937397500,0.22518621,115850.0,115840.0,1.58753243]
[1755937398209,0.22637312,115850.0,115840.0,1.58753243]
[1755937398505,0.22637312,115850.0,115840.0,1.20824532]
[1755937398709,0.22637312,115850.0,115840.0,1.58753243]
[1755937400301,0.21795045,115850.0,115840.0,1.58753243]
[1755937400504,0.21795045,115850.0,115840.0,1.54941451]
[1755937400806,0.21795045,115850.0,115840.0,1.58637512]
[1755937401006,0.21795045,115850.0,115840.0,1.58537512]
[1755937401298,0.21795045,115850.0,115840.0,1.11973061]
[1755937401493,0.84696045,115850.0,115840.0,0.86775746]
[1755937401691,1.22624756,115850.0,115840.0,1.24704457]
[1755937401895,0.84696045,115850.0,115840.0,0.74704457]
[1755937402694,1.22624756,115850.0,115840.0,0.74704457]
[1755937402898,0.84696045,115850.0,115840.0,0.63821772]
[1755937403309,0.84696045,115850.0,115840.0,0.71589542]
[1755937403697,0.84696045,115850.0,115840.0,0.33660831]
[1755937404001,0.84696045,115850.0,115840.0,0.42296521]
[1755937404198,0.84696045,115850.0,115840.0,0.80225232]
[1755937404401,0.84696045,115850.0,115840.0,0.71589542]
[1755937405205,1.22624756,115850.0,115840.0,0.71589542]
[1755937405390,0.84696045,115850.0,115840.0,0.71589542]
[1755937405595,1.22624756,115850.0,115840.0,0.33523831]
[1755937407004,1.22624756,115850.0,115840.0,0.36638746]
[1755937407505,1.22624756,115850.0,115840.0,0.25754081]
[1755937407907,0.84696045,115850.0,115840.0,0.25754081]
[1755937408112,1.22624756,115850.0,115840.0,0.36636766]
[1755937408593,1.22624756,115850.0,115840.0,0.25754081]
[1755937408992,1.22624756,115850.0,115840.0,0.36636766]
[1755937409406,1.22624756,115850.0,115840.0,0.25754081]
[1755937409701,1.22624756,115850.0,115840.0,0.24404295]
[1755937409912,0.97624756,115850.0,115840.0,0.19493034]
[1755937410405,1.22624756,115850.0,115840.0,0.03693986]
[1755937410602,1.22624756,115850.0,115840.0,0.13693986]
[1755937411306,1.22624756,115850.0,115840.0,0.13212386]
[1755937412804,1.22724756,115850.0,115840.0,0.13212386]
[1755937412994,1.22724756,115850.0,115840.0,0.05340362]
[1755937413198,0.0863644,115830.0,115790.0,0.04767]
[1755937413397,1.29186381,115800.0,115790.0,0.0654929]
[1755937413600,1.7236967,115800.0,115790.0,0.44478001]
[1755937413798,2.10298381,115800.0,115790.0,0.0654929]
[1755937414005,2.10298381,115800.0,115790.0,0.5654929]
[1755937414201,2.12327008,115800.0,115790.0,0.5654929]
[1755937414412,1.74398297,115800.0,115790.0,0.5654929]
[1755937414720,1.81400732,115800.0,115790.0,0.6518871]
[1755937415197,1.90984933,115800.0,115790.0,0.7088071]
[1755937415397,1.90984933,115800.0,115790.0,0.7234771]
[1755937415805,1.90984933,115800.0,115790.0,0.7304771]
[1755937417111,1.90984933,115800.0,115790.0,0.7274771]
[1755937417308,1.90984933,115800.0,115790.0,0.7304771]
[1755937418200,1.90984933,115800.0,115790.0,0.8304771]
[1755937419501,1.90992097,115800.0,115790.0,0.8304771]
[1755937420108,1.90984933,115800.0,115790.0,0.3304771]
[1755937421110,1.90991867,115800.0,115790.0,0.3304771]
[1755937421307,1.90992097,115800.0,115790.0,0.3304771]
[1755937421504,1.90992047,115800.0,115790.0,0.3304771]
[1755937421698,1.90992097,115800.0,115790.0,0.3304771]
[1755937422212,1.90984933,115800.0,115790.0,0.3304771]
[1755937422511,1.90984933,115800.0,115790.0,0.34398206]
[1755937423308,1.90992097,115800.0,115790.0,0.34398206]
[1755937423706,1.90984933,115800.0,115790.0,0.34398206]
[1755937423909,1.90992097,115800.0,115790.0,0.25758786]
[1755937424408,1.90984933,115800.0,115790.0,0.25758786]
[1755937425108,1.90990991,115800.0,115790.0,0.25758786]
[1755937425312,1.90992097,115800.0,115790.0,0.25758786]
[1755937426213,1.90984933,115800.0,115790.0,0.25758786]
[1755937428217,1.90984933,115800.0,115790.0,0.25758796]
[1755937429406,1.90984933,115800.0,115790.0,0.13832796]
[1755937430211,1.90984933,115800.0,115790.0,0.14808796]
[1755937430520,1.90984933,115800.0,115790.0,0.19319796]
[1755937431212,1.90984933,115800.0,115790.0,0.22742796]
[1755937431413,1.90984933,115800.0,115790.0,0.22742802]
[1755937431719,1.90984933,115800.0,115790.0,0.25758802]
[1755937432115,1.90984933,115800.0,115790.0,0.27037682]
[1755937436412,2.28990875,115800.0,115790.0,0.65043624]
[1755937437115,1.90984933,115800.0,115790.0,0.65043624]
[1755937437418,2.28990875,115800.0,115790.0,0.62414232]
[1755937437621,2.28990875,115800.0,115790.0,0.6504559]
[1755937438113,2.28990875,115800.0,115790.0,0.27039648]
[1755937438313,2.28990875,115800.0,115790.0,0.6504559]
[1755937439419,2.28998039,115800.0,115790.0,0.6504559]
[1755937439920,2.28429064,115800.0,115790.0,0.6504559]
[1755937440121,1.90423122,115800.0,115790.0,0.27039648]
[1755937440309,2.28429064,115800.0,115790.0,0.27039648]
[1755937440614,2.28436228,115800.0,115790.0,0.27041584]
[1755937441515,2.28429064,115800.0,115790.0,0.28557393]
[1755937441715,2.28429064,115800.0,115790.0,0.22497393]
[1755937441918,2.28429064,115800.0,115790.0,0.13765076]
[1755937442314,2.28429064,115800.0,115790.0,0.15115584]
[1755937442513,2.28429064,115800.0,115790.0,0.31861901]
[1755937442714,2.28429064,115800.0,115790.0,0.33319901]
[1755937444525,2.28429064,115800.0,115790.0,0.16307901]
[1755937445816,2.28429064,115800.0,115790.0,0.24518027]
[1755937446017,2.28429064,115800.0,115790.0,0.27162874]
[1755937446222,2.28429064,115800.0,115790.0,0.30512874]
[1755937446621,1.90423122,115800.0,115790.0,0.68518816]
[1755937446822,2.28429064,115800.0,115790.0,0.68518816]
[1755937447124,2.28429064,115800.0,115790.0,0.69976816]
[1755937448416,2.28429064,115800.0,115790.0,0.68518816]
[1755937448618,2.28429064,115800.0,115790.0,0.30512874]
[1755937448917,1.90423122,115800.0,115790.0,0.30512874]
[1755937449123,2.28429064,115800.0,115790.0,0.30512874]
[1755937449318,1.92349064,115800.0,115790.0,0.30512874]
[1755937452027,1.92349064,115800.0,115790.0,0.24518027]
[1755937452221,1.92349064,115800.0,115790.0,0.1676171]
[1755937452814,1.92349064,115800.0,115790.0,0.1455771]
[1755937453727,1.92349064,115800.0,115790.0,0.1676171]
[1755937454030,1.92349064,115800.0,115790.0,0.19406865]
[1755937455630,1.92349064,115800.0,115790.0,0.30265708]
[1755937456630,1.92349064,115800.0,115790.0,0.30265719]
[1755937457034,1.54343122,115800.0,115790.0,0.30265719]
[1755937457332,1.92349064,115800.0,115790.0,0.30265719]
[1755937458125,1.92349064,115800.0,115790.0,0.19406876]
[1755937458529,1.92349064,115800.0,115790.0,0.30265719]
[1755937458831,1.92349064,115800.0,115790.0,0.27185297]
[1755937461330,1.54343122,115800.0,115790.0,0.27185297]
[1755937461629,1.92356228,115800.0,115790.0,0.30265719]
[1755937461934,1.92349064,115800.0,115790.0,0.21626299]
[1755937462126,1.92349064,115800.0,115790.0,0.16975299]
[1755937462527,1.92349064,115800.0,115790.0,0.06116456]
[1755937462728,1.92349064,115800.0,115790.0,0.0611646]
[1755937463235,1.80472205,115800.0,115790.0,0.0611646]
[1755937463435,1.89110875,115800.0,115790.0,0.0512746]
[1755937464037,2.52196817,115800.0,115790.0,0.07778325]
[1755937464228,0.1208734,115790.0,115780.0,0.15188344]
[1755937464531,0.92357973,115790.0,115780.0,0.28664672]
[1755937464932,0.92357973,115790.0,115780.0,0.17775017]
[1755937465332,1.01942174,115790.0,115780.0,0.17775017]
[1755937465935,1.01942174,115790.0,115780.0,0.18075017]
[1755937466136,1.01942174,115790.0,115780.0,0.18375017]
[1755937468438,0.63936232,115790.0,115780.0,0.18375017]
[1755937468641,1.01942174,115790.0,115780.0,0.27015097]
[1755937469039,1.01942174,115790.0,115780.0,0.18375017]
[1755937469636,1.01942174,115790.0,115780.0,0.20808017]
[1755937469850,0.63936232,115790.0,115780.0,0.20808017]
[1755937470140,1.01942174,115790.0,115780.0,0.08375017]
[1755937470536,1.01948562,115790.0,115780.0,0.08375017]
[1755937470741,1.01942174,115790.0,115780.0,0.18375017]
[1755937472344,0.63936232,115790.0,115780.0,0.18375017]
[1755937472545,1.01942174,115790.0,115780.0,0.18375017]
[1755937473145,1.0194868,115790.0,115780.0,0.18375017]
[1755937473450,1.01942174,115790.0,115780.0,0.18375017]
[1755937473743,0.63943396,115790.0,115780.0,0.18375017]
[1755937473952,1.01942174,115790.0,115780.0,0.18375017]
[1755937474743,1.01942174,115790.0,115780.0,0.20808017]
[1755937475538,1.01949338,115790.0,115780.0,0.20808017]
[1755937475739,1.01942174,115790.0,115780.0,0.20808017]
[1755937475939,1.01948226,115790.0,115780.0,0.20808017]
[1755937476136,1.01949338,115790.0,115780.0,0.2101488]
[1755937476342,1.01942174,115790.0,115780.0,0.2101488]
[1755937477046,1.01942174,115790.0,115780.0,0.13239863]
[1755937477247,1.01942174,115790.0,115780.0,0.15672863]
[1755937477446,1.01942174,115790.0,115780.0,0.23437402]
[1755937478344,1.01942174,115790.0,115780.0,0.25624309]
[1755937479249,0.63936232,115790.0,115780.0,0.25624309]
[1755937479445,1.01942174,115790.0,115780.0,0.25624309]
[1755937479847,1.01949338,115790.0,115780.0,0.25624309]
[1755937480048,1.01942174,115790.0,115780.0,0.25624309]
[1755937481450,1.01942174,115790.0,115780.0,0.26608309]
[1755937482052,1.01942174,115790.0,115780.0,0.30106309]
[1755937483646,1.01942174,115790.0,115780.0,0.26608309]
[1755937484045,0.63936232,115790.0,115780.0,0.26608325]
[1755937484244,1.01942174,115790.0,115780.0,0.26608325]
[1755937484647,1.01948614,115790.0,115780.0,0.26608382]
[1755937484851,1.01942174,115790.0,115780.0,0.26608382]
[1755937485052,1.01948697,115790.0,115780.0,0.26608382]
[1755937485252,1.01942174,115790.0,115780.0,0.23137382]
[1755937485441,1.01942174,115790.0,115780.0,0.23237382]
[1755937485650,1.01949338,115790.0,115780.0,0.23037382]
[1755937486355,1.01942174,115790.0,115780.0,0.10604382]
[1755937486557,1.01942174,115790.0,115780.0,0.12839843]
[1755937487853,1.01942174,115790.0,115780.0,0.10604382]
[1755937488051,1.01942174,115790.0,115780.0,0.10149633]
[1755937488356,1.01942174,115790.0,115780.0,0.0972453]
[1755937490153,1.01949338,115790.0,115780.0,0.0924273]
[1755937490359,1.01942174,115790.0,115780.0,0.0924273]
[1755937490559,1.01942174,115790.0,115780.0,0.01478191]
[1755937490759,1.01942174,115790.0,115780.0,0.00638619]
[1755937491261,0.1216108,115780.0,115770.0,0.21687334]
[1755937491459,1.72323713,115780.0,115770.0,0.21687334]
[1755937492460,1.72323713,115780.0,115770.0,0.21787334]
[1755937492660,1.72323713,115780.0,115770.0,0.21887334]
[1755937493466,1.75069688,115780.0,115770.0,0.21887334]
[1755937493957,1.75076108,115780.0,115770.0,0.21887334]
[1755937494159,1.75076852,115780.0,115770.0,0.21887334]
[1755937494462,1.75069688,115780.0,115770.0,0.21887334]
[1755937495253,1.84653889,115780.0,115770.0,0.21887334]
[1755937497258,1.46647947,115780.0,115770.0,0.21887334]
[1755937497455,1.84653889,115780.0,115770.0,0.21887334]
[1755937497664,1.84653889,115780.0,115770.0,0.20427334]
[1755937499272,2.09653889,115780.0,115770.0,0.02633]
[1755937499561,2.09653889,115780.0,115760.0,0.06022307]
[1755937499562,0.1797983,115770.0,115760.0,0.06022307]
[1755937499867,0.92071981,115770.0,115760.0,0.10058163]
[1755937500055,0.92072936,115770.0,115760.0,0.10058163]
[1755937500261,1.01649973,115770.0,115760.0,0.11409122]
[1755937500462,1.01768664,115770.0,115760.0,0.11409122]
[1755937500663,0.63762722,115770.0,115760.0,0.07773163]
[1755937500963,0.63762722,115770.0,115760.0,0.07873163]
[1755937501264,1.01768664,115770.0,115760.0,0.07873163]
[1755937501672,1.01768664,115770.0,115760.0,0.0912416]
[1755937501969,1.01768664,115770.0,115760.0,0.10058163]
[1755937502161,1.01768664,115770.0,115760.0,0.1140916]
[1755937502661,1.01875828,115770.0,115760.0,0.1140916]
[1755937502869,1.01868664,115770.0,115760.0,0.12716581]
[1755937503776,1.01868664,115770.0,115760.0,0.14905581]
[1755937504566,1.01868664,115770.0,115760.0,0.19229581]
[1755937504763,1.01868664,115770.0,115760.0,0.11456418]
[1755937505366,0.63862722,115770.0,115760.0,0.02658418]
[1755937505574,0.63862722,115770.0,115760.0,0.02653574]
[1755937505575,1.01868664,115770.0,115760.0,0.02653574]
[1755937507570,1.26868664,115770.0,115760.0,0.02653574]
[1755937508978,2.76868664,115770.0,115760.0,0.02653574]
[1755937509177,2.76875118,115770.0,115760.0,0.02653574]
[1755937509378,2.76875828,115770.0,115760.0,0.02653574]
[1755937509682,2.76868664,115770.0,115760.0,0.02653574]
[1755937510080,2.76868664,115770.0,115760.0,0.02641862]
[1755937510376,0.0864152,115760.0,115750.0,0.10058163]
[1755937510570,1.72352317,115760.0,115750.0,0.08034163]
[1755937510774,1.72345153,115760.0,115750.0,0.10675995]
[1755937511170,1.34339211,115760.0,115750.0,0.08034163]
[1755937511371,1.72345153,115760.0,115750.0,0.10675995]
[1755937511587,1.72345153,115760.0,115750.0,0.10775995]
[1755937512778,1.72345153,115760.0,115750.0,0.12964995]
[1755937512987,1.72345153,115760.0,115750.0,0.13866995]
[1755937513191,1.72345153,115760.0,115750.0,0.17288995]
[1755937513483,1.72345153,115760.0,115750.0,0.18939995]
[1755937514079,1.72345153,115760.0,115750.0,0.20306995]
[1755937514478,1.34339211,115760.0,115750.0,0.20306995]
[1755937514790,1.72345153,115760.0,115750.0,0.20306995]
[1755937515173,1.81929354,115760.0,115750.0,0.1764917]
[1755937515384,1.81929354,115760.0,115750.0,0.18940118]
[1755937515587,1.43923412,115760.0,115750.0,0.18940118]
[1755937515783,1.81929354,115760.0,115750.0,0.18940118]
[1755937517381,1.81929354,115760.0,115750.0,0.15518118]
[1755937517779,1.81929354,115760.0,115750.0,0.13867118]
[1755937518384,1.81929354,115760.0,115750.0,0.05026955]
[1755937518679,1.81936518,115760.0,115750.0,0.05026955]
[1755937518987,1.81929354,115760.0,115750.0,0.05026955]
[1755937519987,1.81929354,115760.0,115750.0,0.05027319]
[1755937520290,1.81929354,115760.0,115750.0,0.05027423]
[1755937520481,1.81929354,115760.0,115750.0,0.02742423]
[1755937520681,1.81929354,115760.0,115750.0,0.02742413]
[1755937521590,1.43923412,115760.0,115750.0,0.02742413]
[1755937521790,2.19935296,115760.0,115750.0,0.02742413]
[1755937522391,2.19935296,115760.0,115750.0,0.01232413]
[1755937522790,2.19935296,115760.0,115750.0,0.00852345]
[1755937523186,0.1798127,115750.0,115740.0,0.04042869]